lending/lending_fUSD_20251116
["ID","MTS","AMOUNT","RATE_DAILY","PERIOD"]
[394126622,1763310654245,-500.0,0.00041448,30]
[394126623,1763310654298,-500.0,0.00041448,120]
[394126624,1763310654351,-500.0,0.00041448,120]
[394126625,1763310654404,-500.0,0.00041448,30]
[394126626,1763310654455,-500.0,0.00041448,120]
[394126627,1763310654513,-500.0,0.00041448,120]
[394126628,1763310654566,-307.24448594,0.00041448,120]
[394126629,1763310654622,-500.0,0.00041448,30]
[394126630,1763310654674,-500.0,0.00041448,120]
[394126631,1763310654727,-500.0,0.00041448,30]
[394126632,1763310654780,-413.00348421,0.00041448,120]
[394126633,1763310654831,-513.76201692,0.00041448,30]
[394126634,1763310654884,-500.0,0.00041448,120]
[394126635,1763310654939,-500.0,0.00041448,120]
[394126636,1763310654992,-500.0,0.00041448,120]
[394126637,1763310655044,-560.69394494,0.00041448,120]
[394126638,1763310655100,-500.0,0.00041448,120]
[394126639,1763310655153,-500.0,0.00041448,120]
[394126640,1763310655207,-209.70554203,0.00041448,120]
[394126641,1763310655260,-500.0,0.00041448,120]
[394126642,1763310655316,-432.61580749,0.00041448,120]
[394126643,1763310655369,-458.27818429,0.00041448,120]
[394126644,1763310655422,-500.0,0.00041448,120]
[394126645,1763310655473,-500.0,0.00041448,120]
[394126646,1763310655527,-500.0,0.00041448,120]
[394126647,1763310655579,-500.0,0.00041448,120]
[394126648,1763310655630,-500.0,0.00041448,120]
[394126649,1763310655684,-500.0,0.00041448,120]
[394126650,1763310655739,-484.86859593,0.00041448,120]
[394126651,1763310655791,-500.0,0.00041448,120]
[394126652,1763310655842,-272.26127428,0.00041448,120]
[394126653,1763310656032,-500.0,0.00041448,120]
[394126654,1763310656090,-537.53973909,0.00041448,120]
[394126655,1763310656144,-500.0,0.00041448,120]
[394126656,1763310656196,-500.0,0.00041448,120]
[394126657,1763310656248,-500.0,0.00041448,120]
[394126658,1763310656301,-500.0,0.00041448,120]
[394126659,1763310656352,-440.09275072,0.00041448,120]
[394126660,1763310656409,-500.0,0.00041448,120]
[394126661,1763310656468,-500.0,0.00041448,120]
[394126662,1763310656524,-500.0,0.00041448,120]
[394126663,1763310656579,-500.0,0.00041448,120]
[394126664,1763310656633,-500.0,0.00041448,120]
[394126665,1763310656688,-500.0,0.00041448,120]
[394126666,1763310656745,-500.0,0.00041448,120]
[394126667,1763310656800,-500.0,0.00041448,120]
[394126668,1763310656854,-500.0,0.00041448,120]
[394126669,1763310656908,-314.01247751,0.00041448,120]
[394126670,1763310656967,-500.0,0.00041448,120]
[394126671,1763310657026,-500.0,0.00041448,120]
[394126672,1763310657081,-500.00613878,0.00041448,120]
[394126673,1763310657135,-155.44140611,0.00041448,120]
[394126674,1763310657192,-152.9489055,0.00041448,120]
[394126675,1763310657248,-500.0,0.00041448,120]
[394126676,1763310657306,-618.69238643,0.00041448,120]
[394126677,1763310657359,-507.05531772,0.00041448,120]
[394126678,1763310657412,-500.0,0.00041448,120]
[394126679,1763310657467,-500.0,0.00041448,120]
[394126680,1763310657524,-547.77426873,0.00041448,120]
[394126681,1763310657575,-500.0,0.00041448,120]
[394126682,1763310657628,-314.12201337,0.00041448,120]
[394126683,1763310657684,-502.47538209,0.00041448,120]
[394126684,1763310657740,-500.0,0.00041448,120]
[394126685,1763310657793,-308.35485643,0.00041448,120]
[394126686,1763310657846,-500.0,0.00041448,120]
[394126687,1763310657900,-500.0,0.00041448,120]
[394126688,1763310657955,-613.74395755,0.00041448,120]
[394126689,1763310658009,-501.56431723,0.00041448,120]
[394126690,1763310658064,-528.173278,0.00041448,120]
[394126691,1763310658119,-500.0,0.00041448,120]
[394126692,1763310658178,-500.0,0.00041448,120]
[394126693,1763310658227,-500.0,0.00041448,120]
[394126694,1763310658286,-614.89745059,0.00041448,120]
[394126695,1763310658338,-500.0,0.00041448,120]
[394126696,1763310658391,-500.0,0.00041448,120]
[394126697,1763310658444,-500.0,0.00041448,120]
[394126698,1763310658498,-411.71069696,0.00041448,120]
[394126699,1763310658550,-502.70738836,0.00041448,120]
[394126700,1763310658607,-560.69433253,0.00041448,120]
[394126701,1763310658672,-414.85930658,0.00041448,120]
[394126702,1763310658725,-501.2477963,0.00041448,120]
[394126703,1763310658778,-500.0,0.00041448,120]
[394126704,1763310658834,-500.0,0.00041448,120]
[394126705,1763310658887,-500.0,0.00041448,120]
[394126706,1763310658941,-500.0,0.00041448,120]
[394126707,1763310659002,-505.17199437,0.00041448,120]
[394126708,1763310659062,-500.0,0.00041448,120]
[394126709,1763310659118,-500.0,0.00041448,120]
[394126710,1763310659173,-504.71828753,0.00041448,120]
[394126711,1763310659226,-500.0,0.00041448,120]
[394126712,1763310659279,-500.0,0.00041448,120]
[394126713,1763310659330,-510.44910375,0.00041448,120]
[394126714,1763310659383,-232.27208698,0.00041448,120]
[394126715,1763310659434,-500.0,0.00041448,120]
[394126716,1763310659488,-424.57369411,0.00041448,120]
[394126717,1763310659541,-500.0,0.00041448,120]
[394126718,1763310659593,-500.0,0.00041448,120]
[394126719,1763310659646,-500.0,0.00041448,120]
[394126720,1763310659697,-500.0,0.00041448,120]
[394126721,1763310659747,-213.21495885,0.00041448,120]
[394126722,1763310659792,-500.0,0.00041448,120]
[394126723,1763310659840,-500.0,0.00041448,120]
[394126724,1763310659888,-603.48137869,0.00041448,120]
[394126725,1763310659938,-439.06743851,0.00041448,120]
[394126726,1763310659989,-500.0,0.00041448,120]
[394126727,1763310660041,-500.0,0.00041448,120]
[394126728,1763310660092,-589.77563522,0.00041448,120]
[394126729,1763310660144,-500.0,0.00041448,120]
[394126730,1763310660199,-298.24060779,0.00041448,120]
[394126731,1763310660264,-500.0,0.00041448,120]
[394126732,1763310660322,-492.07536164,0.00041448,120]
[394126733,1763310660375,-409.52367399,0.00041448,120]
[394126734,1763310660431,-500.0,0.00041448,120]
[394126735,1763310660627,-500.0,0.00041448,120]
[394126736,1763310660683,-221.72739385,0.00041448,120]
[394126737,1763310660736,-490.38320791,0.00041448,120]
[394126738,1763310660788,-500.0,0.00041448,120]
[394126739,1763310660839,-500.0,0.00041448,120]
[394126740,1763310660890,-500.0,0.00041448,120]
[394126741,1763310660950,-500.0,0.00041448,120]
[394126742,1763310661006,-500.0,0.00041448,120]
[394126743,1763310661059,-500.0,0.00041448,120]
[394126744,1763310661111,-500.0,0.00041448,120]
[394126745,1763310661164,-500.0,0.00041448,120]
[394126746,1763310661218,-500.0,0.00041448,120]
[394126747,1763310661267,-500.0,0.00041448,120]
[394126748,1763310661318,-500.0,0.00041448,120]
[394126749,1763310661370,-578.47668468,0.00041448,120]
[394126750,1763310661422,-303.79530615,0.00041448,120]
[394126751,1763310661473,-500.0,0.00041448,120]
[394126752,1763310661523,-500.0,0.00041448,120]
[394126753,1763310661574,-500.0,0.00041448,120]
[394126754,1763310661623,-331.48273277,0.00041448,120]
[394126755,1763310661675,-264.77107568,0.00041448,120]
[394126756,1763310661725,-412.64237498,0.00041448,120]
[394126757,1763310661775,-500.0,0.00041448,120]
[394126758,1763310661824,-500.0,0.00041448,120]
[394126759,1763310661874,-500.0,0.00041448,120]
[394126760,1763310661925,-612.70543576,0.00041448,120]
[394126761,1763310661977,-500.0,0.00041448,120]
[394126762,1763310662028,-500.0,0.00041448,120]
[394126763,1763310662082,-213.00972046,0.00041448,120]
[394126764,1763310662134,-500.0,0.00041448,120]
[394126765,1763310662184,-500.0,0.00041448,120]
[394126766,1763310662237,-500.0,0.00041448,120]
[394126767,1763310662289,-235.03239181,0.00041448,120]
[394126768,1763310662339,-500.0,0.00041448,120]
[394126769,1763310662391,-500.0,0.00041448,120]
[394126770,1763310662443,-500.0,0.00041448,120]
[394126771,1763310662494,-500.0,0.00041448,120]
[394126772,1763310662545,-320.19889628,0.00041448,120]
[394126773,1763310662595,-500.0,0.00041448,120]
[394126774,1763310662651,-500.0,0.00041448,120]
[394126775,1763310662706,-500.0,0.00041448,120]
[394126776,1763310662759,-500.0,0.00041448,120]
[394126777,1763310662810,-224.54037693,0.00041448,120]
[394126778,1763310662862,-500.0,0.00041448,120]
[394126779,1763310662916,-633.1710153,0.00041448,120]
[394126780,1763310662971,-500.0,0.00041448,120]
[394126781,1763310663031,-500.0,0.00041448,120]
[394126782,1763310663094,-500.0,0.00041448,120]
[394126783,1763310663148,-500.0,0.00041448,120]
[394126784,1763310663205,-312.90377123,0.00041448,120]
[394126785,1763310663268,-500.0,0.00041448,120]
[394126786,1763310663338,-500.0,0.00041448,120]
[394126787,1763310663392,-500.0,0.00041448,120]
[394126788,1763310663445,-500.0,0.00041448,120]
[394126789,1763310663499,-500.0,0.00041448,120]
[394126790,1763310663557,-500.0,0.00041448,120]
[394126791,1763310663617,-500.0,0.00041448,120]
[394126792,1763310663673,-500.0,0.00041448,120]
[394126793,1763310663729,-634.98305898,0.00041448,120]
[394126794,1763310663783,-500.0,0.00041448,120]
[394126795,1763310663838,-508.93109229,0.00041448,120]
[394126796,1763310663894,-500.0,0.00041448,120]
[394126797,1763310663947,-500.0,0.00041448,120]
[394126798,1763310664000,-500.0,0.00041448,120]
[394126799,1763310664055,-500.0,0.00041448,120]
[394126800,1763310664110,-506.90951624,0.00041448,120]
[394126801,1763310664164,-286.92055424,0.00041448,120]
[394126802,1763310664220,-500.0,0.00041448,120]
[394126803,1763310664274,-500.0,0.00041448,120]
[394126804,1763310664327,-435.54569252,0.00041448,120]
[394126805,1763310664379,-500.0,0.00041448,120]
[394126806,1763310664432,-500.0,0.00041448,120]
[394126807,1763310664486,-500.0,0.00041448,120]
[394126808,1763310664540,-500.0,0.00041448,120]
[394126809,1763310664595,-206.64427374,0.00041448,120]
[394126810,1763310664649,-500.0,0.00041448,120]
[394126811,1763310664704,-500.0,0.00041448,120]
[394126812,1763310664763,-511.55583334,0.00041448,120]
[394126813,1763310664818,-500.0,0.00041448,120]
[394126814,1763310665029,-570.39002511,0.00041448,120]
[394126815,1763310665085,-500.0,0.00041448,120]
[394126816,1763310665140,-500.0,0.00041448,120]
[394126817,1763310665200,-500.0,0.00041448,120]
[394126818,1763310665255,-500.0,0.00041448,120]
[394126819,1763310665312,-551.88108893,0.00041448,120]
[394126820,1763310665366,-500.0,0.00041448,120]
[394126821,1763310665421,-500.0,0.00041448,120]
[394126822,1763310665479,-500.0,0.00041448,120]
[394126823,1763310665533,-500.0,0.00041448,120]
[394126824,1763310665587,-528.50134611,0.00041448,120]
[394126825,1763310665645,-500.0,0.00041448,120]
[394126826,1763310665704,-500.0,0.00041448,120]
[394126827,1763310665763,-500.0,0.00041448,120]
[394126828,1763310665819,-500.0,0.00041448,120]
[394126829,1763310665875,-259.65504891,0.00041448,120]
[394126830,1763310665929,-500.0,0.00041448,120]
[394126831,1763310665988,-500.0,0.00041448,120]
[394126832,1763310666042,-500.0,0.00041448,120]
[394126833,1763310666095,-570.98761197,0.00041448,120]
[394126834,1763310666151,-500.0,0.00041448,120]
[394126835,1763310666219,-224.7781552,0.00041448,120]
[394126836,1763310666279,-500.0,0.00041448,120]
[394126837,1763310666340,-500.0,0.00041448,120]
[394126838,1763310666400,-620.16487556,0.00041448,120]
[394126839,1763310666453,-500.0,0.00041448,120]
[394126840,1763310666507,-500.0,0.00041448,120]
[394126841,1763310666562,-212.98274077,0.00041448,120]
[394126842,1763310666615,-500.0,0.00041448,120]
[394126843,1763310666672,-500.0,0.00041448,120]
[394126844,1763310666744,-500.0,0.00041448,120]
[394126845,1763310666803,-500.0,0.00041448,120]
[394126846,1763310666863,-265.66207177,0.00041448,120]
[394126847,1763310666919,-500.0,0.00041448,120]
[394126848,1763310666974,-500.0,0.00041448,120]
[394126849,1763310667030,-266.53464078,0.00041448,120]
[394126850,1763310667088,-500.0,0.00041448,120]
[394126851,1763310667146,-500.0,0.00041448,120]
[394126852,1763310667202,-500.0,0.00041448,120]
[394126853,1763310667257,-500.0,0.00041448,120]
[394126854,1763310667312,-500.0,0.00041448,120]
[394126855,1763310667370,-500.0,0.00041448,120]
[394126856,1763310667428,-456.02304654,0.00041448,120]
[394126857,1763310667487,-232.85027872,0.00041448,120]
[394126858,1763310667548,-500.0,0.00041448,120]
[394126859,1763310667607,-500.0,0.00041448,120]
[394126860,1763310667663,-500.0,0.00041448,120]
[394126861,1763310667718,-500.0,0.00041448,120]
[394126862,1763310667783,-500.0,0.00041448,120]
[394126863,1763310667843,-500.0,0.00041448,120]
[394126864,1763310667902,-500.0,0.00041448,120]
[394126865,1763310667957,-488.84831789,0.00041448,120]
[394126866,1763310668016,-500.0,0.00041448,120]
[394126867,1763310668076,-501.09728806,0.00041448,120]
[394126868,1763310668133,-500.0,0.00041448,120]
[394126869,1763310668191,-500.0,0.00041448,120]
[394126870,1763310668245,-500.0,0.00041448,120]
[394126871,1763310668305,-500.0,0.00041448,120]
[394126872,1763310668363,-500.0,0.00041448,120]
[394126873,1763310668419,-500.0,0.00041448,120]
[394126874,1763310668476,-500.0,0.00041448,120]
[394126875,1763310668532,-605.97440756,0.00041448,120]
[394126876,1763310668586,-407.86829792,0.00041448,120]
[394126877,1763310668640,-500.0,0.00041448,120]
[394126878,1763310668698,-500.0,0.00041448,120]
[394126879,1763310668752,-500.0,0.00041448,120]
[394126880,1763310668809,-1163.88,0.00041448,120]
[394126881,1763310668863,-500.0,0.00041448,120]
[394126882,1763310668925,-500.0,0.00041448,120]
[394126883,1763310668979,-1163.88,0.00041448,120]
[394126884,1763310669034,-407.39877973,0.00041448,120]
[394126885,1763310669089,-435.10885688,0.00041448,120]
[394126886,1763310669146,-500.0,0.00041448,120]
[394126887,1763310669202,-1163.88,0.00041448,120]
[394126888,1763310669261,-500.0,0.00041448,120]
[394126889,1763310669318,-1163.88,0.00041448,120]
[394126890,1763310669570,-500.0,0.00041448,120]
[394126891,1763310669630,-1163.88,0.00041448,120]
[394126892,1763310669688,-500.0,0.00041448,120]
[394126893,1763310669742,-500.0,0.00041448,120]
[394126894,1763310669794,-1163.88,0.00041448,120]
[394126895,1763310669845,-500.0,0.00041448,120]
[394126896,1763310669898,-500.0,0.00041448,120]
[394126897,1763310669952,-500.0,0.00041448,120]
[394126898,1763310670006,-1163.88,0.00041448,120]
[394126899,1763310670059,-238.95988215,0.00041448,120]
[394126900,1763310670112,-500.0,0.00041448,120]
[394126901,1763310670167,-320.08477838,0.00041448,120]
[394126902,1763310670221,-1163.88,0.00041448,120]
[394126903,1763310670273,-153.07699106,0.00041448,120]
[394126904,1763310670325,-473.13577303,0.00041448,120]
[394126905,1763310670379,-1163.88,0.00041448,120]
[394126906,1763310670431,-262.10567381,0.00041448,120]
[394126907,1763310670485,-1163.88,0.00041448,120]
[394126908,1763310670538,-1163.88,0.00041448,120]
[394126909,1763310670591,-1163.88,0.00041448,120]
[394126910,1763310670662,-1163.88,0.00041448,120]
[394126911,1763310670721,-1163.88,0.00041448,120]
[394126912,1763310670778,-1163.88,0.00041448,120]
[394126913,1763310670833,-1163.88,0.00041448,120]
[394126914,1763310670890,-1163.88,0.00041448,120]
[394126915,1763310670945,-500.0,0.00041448,120]
[394126916,1763310671001,-1163.88,0.00041448,120]
[394126917,1763310671058,-378.49123687,0.00041448,120]
[394126918,1763310671114,-1163.88,0.00041448,120]
[394126919,1763310671170,-1163.88,0.00041448,120]
[394126920,1763310671229,-1163.88,0.00041448,120]
[394126921,1763310671285,-1163.88,0.00041448,120]
[394126922,1763310671339,-200.46291603,0.00041448,120]
[394126923,1763310671399,-1163.88,0.00041448,120]
[394126924,1763310671455,-500.0,0.00041448,120]
[394126925,1763310671513,-1163.92996318,0.00041448,120]
[394126926,1763310671568,-500.0,0.00041448,120]
[394126927,1763310671623,-500.0,0.00041448,120]
[394126928,1763310671678,-500.0,0.00041448,120]
[394126929,1763310671736,-500.0,0.00041448,120]
[394126930,1763310671793,-291.06719447,0.00041448,120]
[394126931,1763310671847,-500.0,0.00041448,120]
[394126932,1763310671906,-500.0,0.00041448,120]
[394126933,1763310671962,-500.0,0.00041448,120]
[394126934,1763310672019,-500.0,0.00041448,120]
[394126935,1763310672076,-500.0,0.00041448,120]
[394126936,1763310672131,-500.0,0.00041448,120]
[394126937,1763310672186,-500.0,0.00041448,120]
[394126938,1763310672242,-406.55708481,0.00041448,120]
[394126939,1763310672301,-500.0,0.00041448,120]
[394126940,1763310672358,-500.0,0.00041448,120]
[394126941,1763310672414,-635.68408946,0.00041448,120]
[394126942,1763310672468,-500.0,0.00041448,120]
[394126943,1763310672524,-500.0,0.00041448,120]
[394126944,1763310672577,-500.0,0.00041448,120]
[394126945,1763310672631,-369.9319167,0.00041448,120]
[394126946,1763310672684,-500.0,0.00041448,120]
[394126947,1763310672744,-391.6381603,0.00041448,120]
[394126948,1763310672798,-500.0,0.00041448,120]
[394126949,1763310672851,-603.99507319,0.00041448,120]
[394126950,1763310672907,-374.94880584,0.00041448,120]
[394126951,1763310672961,-263.38263081,0.00041448,120]
[394126952,1763310673016,-401.48651248,0.00041448,120]
[394126953,1763310673069,-411.38205776,0.00041448,120]
[394126954,1763310673123,-500.0,0.00041448,120]
[394126955,1763310673183,-500.0,0.00041448,120]
[394126956,1763310673236,-409.42314857,0.00041448,120]
[394126957,1763310673294,-500.0,0.00041448,120]
[394126958,1763310673349,-500.0,0.00041448,120]
[394126959,1763310673407,-620.31602734,0.00041448,120]
[394126960,1763310673460,-404.98442831,0.00041448,120]
[394126961,1763310673513,-500.0,0.00041448,120]
[394126962,1763310673568,-500.0,0.00041448,120]
[394126963,1763310673625,-632.07057434,0.00041448,120]
[394126964,1763310673862,-500.0,0.00041448,120]
[394126965,1763310673933,-500.0,0.00041448,120]
[394126966,1763310673995,-208.63879617,0.00041448,120]
[394126967,1763310674056,-500.0,0.00041448,120]
[394126968,1763310674116,-500.0,0.00041448,120]
[394126969,1763310674175,-500.0,0.00041448,120]
[394126970,1763310674238,-530.32045882,0.00041448,120]
[394126971,1763310674295,-500.0,0.00041448,120]
[394126972,1763310674352,-408.81626385,0.00041448,120]
[394126973,1763310674410,-500.0,0.00041448,120]
[394126974,1763310674467,-500.0,0.00041448,120]
[394126975,1763310674527,-500.0,0.00041448,120]
[394126976,1763310674582,-500.0,0.00041448,120]
[394126977,1763310674639,-179.44473146,0.00041448,120]
[394126978,1763310674698,-500.0,0.00041448,120]
[394126979,1763310674756,-500.0,0.00041448,120]
[394126980,1763310674810,-405.26053588,0.00041448,120]
[394126981,1763310674864,-500.0,0.00041448,120]
[394126982,1763310674918,-348.46997614,0.00041448,120]
[394126983,1763310674972,-500.0,0.00041448,120]
[394126984,1763310675027,-500.0,0.00041448,120]
[394126985,1763310675080,-500.0,0.00041448,120]
[394126986,1763310675134,-504.84303019,0.00041448,120]
[394126987,1763310675187,-626.48924988,0.00041448,120]
[394126988,1763310675241,-512.28037449,0.00041448,120]
[394126989,1763310675294,-500.0,0.00041448,120]
[394126990,1763310675347,-500.0,0.00041448,120]
[394126991,1763310675402,-500.0,0.00041448,120]
[394126992,1763310675455,-500.0,0.00041448,120]
[394126993,1763310675518,-532.9960252,0.00041448,120]
[394126994,1763310675573,-500.0,0.00041448,120]
[394126995,1763310675627,-500.0,0.00041448,120]
[394126996,1763310675684,-527.77951559,0.00041448,120]
[394126997,1763310675745,-500.0,0.00041448,120]
[394126998,1763310675803,-500.0,0.00041448,120]
[394126999,1763310675864,-500.0,0.00041448,120]
[394127000,1763310675922,-643.48230701,0.00041448,120]
[394127001,1763310675984,-553.09086584,0.00041448,120]
[394127002,1763310676041,-500.0,0.00041448,120]
[394127003,1763310676098,-500.0,0.00041448,120]
[394127004,1763310676154,-643.05919876,0.00041448,120]
[394127005,1763310676224,-500.0,0.00041448,120]
[394127006,1763310676285,-500.0,0.00041448,120]
[394127007,1763310676341,-500.0,0.00041448,120]
[394127008,1763310676397,-500.0,0.00041448,120]
[394127009,1763310676454,-500.0,0.00041448,120]
[394127010,1763310676508,-500.0,0.00041448,120]
[394127011,1763310676561,-500.0,0.00041448,120]
[394127012,1763310676615,-501.80928843,0.00041448,120]
[394127013,1763310676669,-500.0,0.00041448,120]
[394127014,1763310676724,-451.44990924,0.00041448,120]
[394127015,1763310676781,-500.0,0.00041448,120]
[394127016,1763310676835,-500.0,0.00041448,120]
[394127017,1763310676890,-500.0,0.00041448,120]
[394127018,1763310676946,-224.07872496,0.00041448,120]
[394127019,1763310677001,-157.60460639,0.00041448,120]
[394127020,1763310677054,-500.0,0.00041448,120]
[394127021,1763310677109,-500.0,0.00041448,120]
[394127022,1763310677168,-361.06827002,0.00041448,120]
[394127023,1763310677225,-237.51,0.00041448,120]
[394127024,1763310677289,-500.0,0.00041448,120]
[394127025,1763310677349,-400.0,0.00041448,120]
[394127026,1763310677425,-500.0,0.00041448,120]
[394127027,1763310677483,-500.0,0.00041448,120]
[394127028,1763310677537,-500.0,0.00041448,120]
[394127029,1763310677591,-500.0,0.00041448,120]
[394127030,1763310677647,-500.0,0.00041448,120]
[394127031,1763310677703,-500.0,0.00041448,120]
[394127032,1763310677759,-500.0,0.00041448,120]
[394127033,1763310677813,-500.0,0.00041448,120]
[394127034,1763310677869,-165.95843668,0.00041448,120]
[394127035,1763310677923,-500.0,0.00041448,120]
[394127036,1763310678133,-500.0,0.00041448,120]
[394127037,1763310678198,-500.0,0.00041448,120]
[394127038,1763310678253,-500.0,0.00041448,120]
[394127039,1763310678309,-500.0,0.00041448,120]
[394127040,1763310678365,-234.05614738,0.00041448,120]
[394127041,1763310678420,-600.0,0.00041448,120]
[394127042,1763310678478,-500.0,0.00041448,120]
[394127043,1763310678542,-500.0,0.00041448,120]
[394127044,1763310678601,-511.52625372,0.00041448,120]
[394127045,1763310678665,-515.189742,0.00041448,120]
[394127046,1763310678732,-500.0,0.00041448,120]
[394127047,1763310678799,-500.0,0.00041448,120]
[394127048,1763310678857,-500.0,0.00041448,120]
[394127049,1763310678913,-500.0,0.00041448,120]
[394127050,1763310678969,-500.0,0.00041448,120]
[394127051,1763310679028,-437.29744421,0.00041448,120]
[394127052,1763310679081,-500.0,0.00041448,120]
[394127053,1763310679138,-406.85689876,0.00041448,120]
[394127054,1763310679198,-500.0,0.00041448,120]
[394127055,1763310679253,-500.0,0.00041448,120]
[394127056,1763310679307,-500.0,0.00041448,120]
[394127057,1763310679364,-500.0,0.00041448,120]
[394127058,1763310679418,-500.0,0.00041448,120]
[394127059,1763310679472,-500.0,0.00041448,120]
[394127060,1763310679530,-500.0,0.00041448,120]
[394127061,1763310679586,-500.0,0.00041448,120]
[394127062,1763310679642,-500.0,0.00041448,120]
[394127063,1763310679697,-500.0,0.00041448,120]
[394127064,1763310679751,-617.19248581,0.00041448,120]
[394127065,1763310679806,-500.0,0.00041448,120]
[394127066,1763310679860,-250.65553398,0.00041448,120]
[394127067,1763310679917,-383.95724485,0.00041448,120]
[394127068,1763310679974,-500.0,0.00041448,120]
[394127069,1763310680033,-400.0,0.00041448,120]
[394127070,1763310680087,-500.0,0.00041448,120]
[394127071,1763310680140,-303.56907556,0.00041448,120]
[394127072,1763310680195,-500.0,0.00041448,120]
[394127073,1763310680250,-288.58047019,0.00041448,120]
[394127074,1763310680303,-405.64963337,0.00041448,120]
[394127075,1763310680356,-502.96813262,0.00041448,120]
[394127076,1763310680412,-500.0,0.00041448,120]
[394127077,1763310680463,-500.0,0.00041448,120]
[394127078,1763310680518,-500.0,0.00041448,120]
[394127079,1763310680576,-500.0,0.00041448,120]
[394127080,1763310680633,-500.0,0.00041448,120]
[394127081,1763310680693,-500.0,0.00041448,120]
[394127082,1763310680749,-500.0,0.00041448,120]
[394127083,1763310680803,-500.0,0.00041448,120]
[394127084,1763310680856,-500.0,0.00041448,120]
[394127085,1763310680909,-483.56705861,0.00041448,120]
[394127086,1763310680962,-500.0,0.00041448,120]
[394127087,1763310681018,-500.0,0.00041448,120]
[394127088,1763310681073,-500.0,0.00041448,120]
[394127089,1763310681126,-530.28799584,0.00041448,120]
[394127090,1763310681179,-500.0,0.00041448,120]
[394127091,1763310681233,-500.0,0.00041448,120]
[394127092,1763310681285,-500.0,0.00041448,120]
[394127093,1763310681338,-500.0,0.00041448,120]
[394127094,1763310681391,-500.0,0.00041448,120]
[394127095,1763310681442,-252.51526737,0.00041448,120]
[394127096,1763310681495,-500.0,0.00041448,120]
[394127097,1763310681548,-500.0,0.00041448,120]
[394127098,1763310681605,-500.0,0.00041448,120]
[394127099,1763310681657,-279.04607131,0.00041448,120]
[394127100,1763310681712,-500.0,0.00041448,120]
[394127101,1763310681767,-500.0,0.00041448,120]
[394127102,1763310681820,-500.0,0.00041448,120]
[394127103,1763310681873,-500.0,0.00041448,120]
[394127104,1763310681927,-500.0,0.00041448,120]
[394127105,1763310682114,-500.0,0.00041448,120]
[394127106,1763310682175,-500.0,0.00041448,120]
[394127107,1763310682229,-388.12299105,0.00041448,120]
[394127108,1763310682287,-500.0,0.00041448,120]
[394127109,1763310682343,-500.0,0.00041448,120]
[394127110,1763310682399,-500.0,0.00041448,120]
[394127111,1763310682456,-474.66131837,0.00041448,120]
[394127112,1763310682511,-404.74384972,0.00041448,120]
[394127113,1763310682564,-500.0,0.00041448,120]
[394127114,1763310682618,-500.0,0.00041448,120]
[394127115,1763310682670,-407.78036505,0.00041448,120]
[394127116,1763310682723,-500.0,0.00041448,120]
[394127117,1763310682776,-500.0,0.00041448,120]
[394127118,1763310682827,-536.05583232,0.00041448,120]
[394127119,1763310682881,-500.0,0.00041448,120]
[394127120,1763310682933,-641.52765171,0.00041448,120]
[394127121,1763310682988,-500.0,0.00041448,120]